fUSD/lending_fUSD_20250312
["ID","MTS","AMOUNT","RATE_DAILY","PERIOD"]
[355979141,1741758639935,-1084.0,0.0001,2]
[355979142,1741758639944,-5095.20418288,0.0001,2]
[355979143,1741758639954,-404030.31076517,0.0001,2]
[355979144,1741758640239,-773.00584816,0.0001,2]
[355979146,1741758641127,-500.0,9.998e-05,2]
[355979147,1741758641137,-24396.62207894,0.0001,2]
[355979148,1741758641309,-500.0,9.998e-05,2]
[355979149,1741758641319,-1410830.94369848,0.0001,2]
[355979150,1741758641328,-9659.0,0.0001,2]
[355979151,1741758641337,-321643.69239506,0.0001,2]
[355979152,1741758641348,-404.760008,0.0001,2]
[355979159,1741758643646,-615.46484973,9.299e-05,2]
[355979212,1741758646305,-306.67515027,9.299e-05,2]
[355979213,1741758646314,-1135.88,9.299e-05,2]
[355979214,1741758646323,-1231.53,9.572e-05,2]
[355979215,1741758646334,-1280.46,9.572e-05,2]
[355979216,1741758646343,-500.0,9.572e-05,2]
[355979217,1741758646353,-922.14,9.573e-05,2]
[355979218,1741758646362,-1135.88,9.573e-05,2]
[355979219,1741758646371,-1231.53,9.846e-05,2]
[355979220,1741758646381,-1280.46,9.846e-05,2]
[355979221,1741758646391,-500.0,9.846e-05,2]
[355979222,1741758646400,-922.14,9.847e-05,2]
[355979223,1741758646410,-1135.88,9.847e-05,2]
[355979224,1741758646419,-884.0,0.0001,2]
[355979225,1741758646429,-80473.97584466,0.0001,2]
[355979229,1741758781650,1052.91,8.219e-05,2]
[355979233,1741758945790,83.4564,9.095e-05,2]
[355979241,1741759370209,-500.0,9.572e-05,8]
[355979242,1741759382110,-250.0,9.09e-05,2]
[355979244,1741759386395,-500.0,9.846e-05,8]
[355979245,1741759397596,-164.45,9.09e-05,2]
[355979246,1741759405308,-198.69244979,8.954e-05,2]
[355979247,1741759419967,-237.13682247,8.954e-05,2]
[355979248,1741759425515,-500.0,0.0001012,8]
[355979249,1741759442432,-300.0,8.953e-05,2]
[355979250,1741759445829,-250.0,8.954e-05,2]
[355979251,1741759464349,-150.0,8.954e-05,2]
[355979252,1741759482988,-266.84065786,8.954e-05,2]
[355979253,1741759497194,-339.64102603,8.954e-05,2]
[355979254,1741759502180,-300.0,8.953e-05,2]
[355979255,1741759504068,-196.34065786,8.954e-05,2]
[355979256,1741759508024,-300.0,8.954e-05,2]
[355979257,1741759566003,-164.45,8.941e-05,2]
[355979258,1741759566027,-42.23,8.953e-05,2]
[355979259,1741759571250,-250.0,8.947e-05,2]
[355979260,1741759579929,-300.0,8.947e-05,2]
[355979261,1741759579953,-162.28401461,8.953e-05,2]
[355979262,1741759583398,-95.48598539,8.953e-05,2]
[355979263,1741759583422,-346.36919943,8.954e-05,2]
[355979264,1741759587502,-300.0,8.954e-05,2]
[355979265,1741759630505,-150.0,8.954e-05,2]
[355979266,1741759635661,-300.0,8.954e-05,2]
[355979267,1741759648420,-215.65934214,8.954e-05,2]
[355979268,1741759669102,-300.0,8.954e-05,2]
[355979269,1741759685842,-300.0,8.953e-05,2]
[355979270,1741759685866,-137.59,8.954e-05,2]
[355979271,1741759701627,-192.96755021,8.954e-05,2]
[355979272,1741759708155,250.0,8.889e-05,2]
[355979273,1741759712949,-500.0,8.954e-05,2]
[355979274,1741759724359,-367.28,8.954e-05,2]
[355979275,1741759734748,-300.0,8.954e-05,2]
[355979276,1741759742462,-205.73,8.953e-05,2]
[355979277,1741759751753,-94.27,8.953e-05,2]
[355979278,1741759751778,-58.57839748,8.954e-05,2]
[355979279,1741759761768,-191.47934214,8.954e-05,2]
[355979280,1741759765319,-6062.85789665,8.954e-05,2]
[355979281,1741759765361,-6062.85789665,8.954e-05,2]
[355979282,1741759765587,-5879.37876129,8.954e-05,2]
[355979283,1741759765613,-183.47913536,8.964e-05,2]
[355979284,1741759765651,-366.52086464,8.964e-05,2]
[355979285,1741759765676,-441.85518482,8.974e-05,2]
[355979286,1741759765702,-267.5,8.974e-05,2]
[355979287,1741759765726,-3221.39118792,9.09e-05,2]
[355979288,1741759765752,-901.23611927,9.095e-05,2]
[355979289,1741759766149,-15.30748073,9.095e-05,2]
[355979290,1741759766172,-151.97251927,9.228e-05,2]
[355979294,1741759832354,-20.06748073,9.228e-05,2]
[355979295,1741759832365,-156.1552,9.473e-05,2]
[355979296,1741759832375,-150.0,9.571e-05,2]
[355979297,1741759832385,-293.77731927,9.571e-05,2]
[355979307,1741759838072,-6.22268073,9.571e-05,2]
[355979308,1741759838082,-500.0,9.572e-05,2]
[355979309,1741759838093,-500.0,9.572e-05,2]
[355979310,1741759838104,-500.0,9.572e-05,2]
[355979311,1741759838113,-500.0,9.572e-05,2]
[355979312,1741759838123,-500.0,9.572e-05,2]
[355979313,1741759838132,-500.0,9.572e-05,2]
[355979314,1741759838141,-189.05293886,9.572e-05,2]
[355979315,1741759838150,-500.0,9.572e-05,2]
[355979316,1741759838160,-500.0,9.572e-05,2]
[355979317,1741759838169,-500.0,9.572e-05,2]
[355979318,1741759838178,-500.0,9.572e-05,2]
[355979319,1741759838187,-525.72,9.572e-05,2]
[355979320,1741759838198,-500.0,9.572e-05,2]
[355979321,1741759838207,-500.0,9.572e-05,2]
[355979322,1741759838216,-515.21,9.572e-05,2]
[355979323,1741759838226,-500.0,9.572e-05,2]
[355979324,1741759838236,-500.0,9.572e-05,2]
[355979325,1741759838245,-500.0,9.572e-05,2]
[355979326,1741759838255,-500.0,9.572e-05,2]
[355979327,1741759838265,-500.0,9.572e-05,2]
[355979328,1741759838274,-500.0,9.572e-05,2]
[355979329,1741759838283,-500.0,9.572e-05,2]
[355979330,1741759838292,-500.0,9.572e-05,2]
[355979331,1741759838301,-500.0,9.572e-05,2]
[355979332,1741759838310,-500.0,9.572e-05,2]
[355979333,1741759838319,-500.0,9.572e-05,2]
[355979334,1741759838329,-500.0,9.572e-05,2]
[355979335,1741759838339,-500.0,9.572e-05,2]
[355979336,1741759838348,-500.0,9.572e-05,2]
[355979337,1741759838357,-500.0,9.572e-05,2]
[355979339,1741759838367,-500.0,9.572e-05,2]
[355979341,1741759838376,-500.0,9.572e-05,2]
[355979343,1741759838386,-500.0,9.572e-05,2]
[355979344,1741759838395,-500.0,9.572e-05,2]
[355979346,1741759838404,-99.01393114,9.572e-05,2]
[355979394,1741759840367,-116.94378936,9.572e-05,2]
[355979395,1741759840378,-93.66868879,9.572e-05,2]
[355979396,1741759840390,-406.33131121,9.572e-05,2]
[355979397,1741759840399,-500.0,9.572e-05,2]
[355979398,1741759840409,-102.19778811,9.572e-05,2]
[355979399,1741759840468,-397.80221189,9.572e-05,2]
[355979400,1741759840478,-500.0,9.572e-05,2]
[355979401,1741759840487,-438.85113182,9.572e-05,2]
[355979402,1741759840497,-529.64000695,9.572e-05,2]
[355979403,1741759840507,-500.0,9.572e-05,2]
[355979404,1741759840516,-500.0,9.572e-05,2]
[355979405,1741759840526,-500.0,9.572e-05,2]
[355979406,1741759840536,-500.0,9.572e-05,2]
[355979407,1741759840545,-500.0,9.572e-05,2]
[355979408,1741759840555,-500.0,9.572e-05,2]
[355979409,1741759840565,-500.0,9.572e-05,2]
[355979410,1741759840574,-500.0,9.572e-05,2]
[355979411,1741759840584,-500.0,9.572e-05,2]
[355979412,1741759840594,-504.4,9.572e-05,2]
[355979413,1741759840603,-536.47,9.572e-05,2]
[355979414,1741759840613,-500.0,9.572e-05,2]
[355979415,1741759840623,-500.0,9.572e-05,2]
[355979416,1741759840632,-500.0,9.572e-05,2]
[355979417,1741759840642,-757.23,9.572e-05,2]
[355979418,1741759840651,-500.0,9.572e-05,2]
[355979419,1741759840662,-500.0,9.572e-05,2]
[355979420,1741759840671,-500.0,9.572e-05,2]
[355979421,1741759840681,-504.94,9.572e-05,2]
[355979422,1741759840691,-500.0,9.572e-05,2]
[355979423,1741759840701,-560.69,9.572e-05,2]
[355979424,1741759840711,-500.0,9.572e-05,2]
[355979425,1741759840721,-500.0,9.572e-05,2]
[355979426,1741759840730,-500.0,9.572e-05,2]
[355979427,1741759840740,-570.02,9.572e-05,2]
[355979428,1741759840750,-500.0,9.572e-05,2]
[355979429,1741759840759,-500.0,9.572e-05,2]
[355979430,1741759840769,-500.0,9.572e-05,2]
[355979431,1741759840779,-500.0,9.572e-05,2]
[355979432,1741759840789,-500.0,9.572e-05,2]
[355979433,1741759840798,-500.0,9.572e-05,2]
[355979434,1741759840807,-522.65,9.572e-05,2]
[355979435,1741759840818,-500.0,9.572e-05,2]
[355979436,1741759840838,-613.39,9.572e-05,2]
[355979437,1741759840857,-500.0,9.572e-05,2]
[355979438,1741759840867,-723.08,9.572e-05,2]
[355979439,1741759840876,-500.0,9.572e-05,2]
[355979440,1741759840886,-500.0,9.572e-05,2]
[355979441,1741759840896,-500.0,9.572e-05,2]
[355979442,1741759840906,-500.0,9.572e-05,2]
[355979443,1741759840915,-500.0,9.572e-05,2]
[355979444,1741759840925,-733.63,9.572e-05,2]
[355979445,1741759840934,-577.83365775,9.699e-05,2]
[355979446,1741759840945,-2335.8281,9.746e-05,2]
[355979447,1741759840954,-577.83365775,9.753e-05,2]
[355979448,1741759840964,-1142.3493978,9.8e-05,2]
[355979449,1741759840974,-577.83365775,9.808e-05,2]
[355979450,1741759840983,-550.0,9.835e-05,2]
[355979451,1741759840993,-577.83365775,9.836e-05,2]
[355979452,1741759841002,-500.0,9.844e-05,2]
[355979453,1741759841011,-973.74,9.844e-05,2]
[355979454,1741759841020,-775.96,9.844e-05,2]
[355979455,1741759841030,-500.0,9.844e-05,2]
[355979456,1741759841039,-1252.62,9.844e-05,2]
[355979457,1741759841048,-500.0,9.844e-05,2]
[355979458,1741759841058,-1844.06,9.844e-05,2]
[355979459,1741759841067,-923.14,9.844e-05,2]
[355979460,1741759841077,-621.79,9.844e-05,2]
[355979461,1741759841086,-500.0,9.844e-05,2]
[355979462,1741759841096,-500.0,9.844e-05,2]
[355979463,1741759841106,-1584.09,9.844e-05,2]
[355979464,1741759841123,-500.0,9.844e-05,2]
[355979465,1741759841133,-1140.19,9.844e-05,2]
[355979466,1741759841143,-500.0,9.844e-05,2]
[355979467,1741759841152,-765.46,9.844e-05,2]
[355979468,1741759841161,-1175.23,9.844e-05,2]
[355979469,1741759841170,-2379.25,9.844e-05,2]
[355979470,1741759841180,-668.81,9.844e-05,2]
[355979471,1741759841190,-1053.55,9.844e-05,2]
[355979472,1741759841199,-500.0,9.844e-05,2]
[355979473,1741759841208,-928.19,9.844e-05,2]
[355979474,1741759841218,-500.0,9.844e-05,2]
[355979475,1741759841227,-3060.44,9.844e-05,2]
[355979476,1741759841236,-500.0,9.844e-05,2]
[355979477,1741759841246,-500.0,9.844e-05,2]
[355979478,1741759841255,-500.0,9.844e-05,2]
[355979479,1741759841265,-992.12,9.844e-05,2]
[355979480,1741759841274,-150.942088,9.845e-05,2]
[355979481,1741759841284,-154.034078,9.845e-05,2]
[355979482,1741759841293,-153.003788,9.845e-05,2]
[355979483,1741759841302,-881.501272,9.845e-05,2]
[355979484,1741759841311,-500.0,9.845e-05,2]
[355979485,1741759841321,-500.0,9.845e-05,2]
[355979486,1741759841330,-500.0,9.845e-05,2]
[355979487,1741759841339,-500.0,9.845e-05,2]
[355979488,1741759841349,-500.0,9.845e-05,2]
[355979489,1741759841359,-548.11,9.845e-05,2]
[355979490,1741759841368,-500.0,9.845e-05,2]
[355979491,1741759841377,-500.0,9.845e-05,2]
[355979492,1741759841387,-500.0,9.845e-05,2]
[355979493,1741759841396,-500.0,9.845e-05,2]
[355979494,1741759841405,-574.5,9.845e-05,2]
[355979495,1741759841414,-500.0,9.845e-05,2]
[355979496,1741759841424,-500.0,9.845e-05,2]
[355979497,1741759841433,-500.0,9.845e-05,2]
[355979498,1741759841443,-500.0,9.845e-05,2]
[355979499,1741759841452,-512.3,9.845e-05,2]
[355979500,1741759841462,-500.0,9.845e-05,2]
[355979501,1741759841472,-500.0,9.845e-05,2]
[355979502,1741759841481,-500.0,9.845e-05,2]
[355979503,1741759841491,-501.4,9.845e-05,2]
[355979504,1741759841501,-500.0,9.845e-05,2]
[355979505,1741759841511,-500.0,9.845e-05,2]
[355979506,1741759841521,-500.0,9.845e-05,2]
[355979507,1741759841531,-500.0,9.845e-05,2]
[355979508,1741759841540,-500.0,9.845e-05,2]
[355979509,1741759841550,-500.0,9.845e-05,2]
[355979510,1741759841561,-500.0,9.845e-05,2]
[355979511,1741759841570,-500.0,9.845e-05,2]
[355979512,1741759841580,-589.16,9.845e-05,2]
[355979513,1741759841590,-500.0,9.845e-05,2]
[355979514,1741759841599,-542.72,9.845e-05,2]
[355979515,1741759841609,-500.0,9.845e-05,2]
[355979516,1741759841619,-500.0,9.845e-05,2]
[355979517,1741759841628,-500.0,9.845e-05,2]
[355979518,1741759841638,-500.0,9.845e-05,2]
[355979519,1741759841647,-500.0,9.845e-05,2]
[355979520,1741759841657,-500.0,9.845e-05,2]
[355979521,1741759841667,-500.0,9.845e-05,2]
[355979522,1741759841676,-500.0,9.845e-05,2]
[355979523,1741759841686,-586.49,9.845e-05,2]
[355979524,1741759841695,-500.0,9.845e-05,2]
[355979525,1741759841705,-500.0,9.845e-05,2]
[355979526,1741759841715,-500.0,9.845e-05,2]
[355979527,1741759841725,-500.0,9.845e-05,2]
[355979528,1741759841734,-500.0,9.845e-05,2]
[355979529,1741759841744,-503.59,9.845e-05,2]
[355979530,1741759841753,-500.0,9.845e-05,2]
[355979531,1741759841763,-500.0,9.845e-05,2]
[355979532,1741759841772,-500.0,9.845e-05,2]
[355979533,1741759841782,-500.0,9.845e-05,2]
[355979534,1741759841791,-500.0,9.845e-05,2]
[355979535,1741759841801,-558.95,9.845e-05,2]
[355979536,1741759841811,-518.91,9.845e-05,2]
[355979537,1741759841821,-500.0,9.845e-05,2]
[355979538,1741759841830,-500.0,9.845e-05,2]
[355979539,1741759841842,-500.0,9.845e-05,2]
[355979540,1741759841854,-500.0,9.845e-05,2]
[355979541,1741759841864,-500.0,9.845e-05,2]
[355979542,1741759841874,-500.0,9.845e-05,2]
[355979543,1741759841884,-500.0,9.845e-05,2]
[355979544,1741759841894,-500.0,9.845e-05,2]
[355979545,1741759841904,-500.0,9.845e-05,2]
[355979546,1741759841913,-500.0,9.845e-05,2]
[355979547,1741759841923,-542.75,9.845e-05,2]
[355979548,1741759842120,-548.4,9.845e-05,2]
[355979549,1741759842130,-500.0,9.845e-05,2]
[355979550,1741759842140,-500.0,9.845e-05,2]
[355979551,1741759842149,-500.0,9.845e-05,2]
[355979552,1741759842158,-500.0,9.845e-05,2]
[355979553,1741759842167,-500.0,9.845e-05,2]
[355979554,1741759842177,-304.98901531,9.845e-05,2]
[355979555,1741759842187,-455.03856363,9.845e-05,2]
[355979556,1741759842196,-500.0,9.845e-05,2]
[355979557,1741759842206,-500.0,9.845e-05,2]
[355979558,1741759842215,-500.0,9.845e-05,2]
[355979559,1741759842225,-500.0,9.845e-05,2]
[355979560,1741759842235,-500.0,9.845e-05,2]
[355979561,1741759842244,-500.0,9.845e-05,2]
[355979562,1741759842254,-500.0,9.845e-05,2]
[355979563,1741759842263,-500.0,9.845e-05,2]
[355979564,1741759842272,-500.0,9.845e-05,2]
[355979565,1741759842282,-500.0,9.845e-05,2]
[355979566,1741759842291,-507.28,9.845e-05,2]
[355979567,1741759842300,-500.0,9.845e-05,2]
[355979568,1741759842309,-500.0,9.845e-05,2]
[355979569,1741759842319,-500.0,9.845e-05,2]
[355979570,1741759842328,-500.0,9.845e-05,2]
[355979571,1741759842339,-580.27,9.845e-05,2]
[355979572,1741759842348,-385.87581091,9.845e-05,2]
[355979573,1741759842357,-500.0,9.845e-05,2]
[355979574,1741759842367,-1057.21,9.845e-05,2]
[355979575,1741759842376,-500.0,9.845e-05,2]
[355979576,1741759842385,-500.0,9.845e-05,2]
[355979577,1741759842395,-789.26,9.845e-05,2]
[355979578,1741759842404,-500.0,9.845e-05,2]
[355979579,1741759842413,-1017.24,9.845e-05,2]
[355979580,1741759842423,-500.0,9.845e-05,2]
[355979581,1741759842432,-500.0,9.845e-05,2]
[355979582,1741759842442,-500.0,9.845e-05,2]
[355979583,1741759842451,-500.0,9.845e-05,2]
[355979584,1741759842460,-500.0,9.845e-05,2]
[355979585,1741759842469,-373.29195115,9.845e-05,2]
[355979586,1741759842479,-500.0,9.845e-05,2]
[355979587,1741759842488,-371.30866467,9.845e-05,2]
[355979588,1741759842497,-500.0,9.845e-05,2]
[355979589,1741759842506,-500.0,9.845e-05,2]
[355979590,1741759842516,-1128.9,9.845e-05,2]
[355979591,1741759842525,-500.0,9.845e-05,2]
[355979592,1741759842535,-754.89,9.845e-05,2]
[355979593,1741759842544,-576.73,9.845e-05,2]
[355979594,1741759842554,-500.0,9.845e-05,2]
[355979595,1741759842563,-500.0,9.845e-05,2]
[355979596,1741759842572,-4121.28,9.845e-05,2]
[355979597,1741759842582,-1586.67,9.845e-05,2]
[355979598,1741759842591,-500.0,9.845e-05,2]
[355979599,1741759842601,-500.0,9.845e-05,2]
[355979600,1741759842610,-500.0,9.845e-05,2]
[355979601,1741759842619,-655.03,9.845e-05,2]
[355979602,1741759842628,-500.0,9.845e-05,2]
[355979603,1741759842638,-750.9,9.845e-05,2]
[355979604,1741759842647,-500.0,9.845e-05,2]
[355979605,1741759842657,-221.29585352,9.845e-05,2]
[355979606,1741759842666,-500.0,9.845e-05,2]
[355979607,1741759842675,-950.76,9.845e-05,2]
[355979608,1741759842684,-500.0,9.845e-05,2]
[355979609,1741759842694,-677.81,9.845e-05,2]
[355979610,1741759842703,-500.0,9.845e-05,2]
[355979611,1741759842712,-806.88,9.845e-05,2]
[355979612,1741759842722,-563.38,9.845e-05,2]
[355979613,1741759842731,-699.67,9.845e-05,2]
[355979614,1741759842740,-500.0,9.845e-05,2]
[355979615,1741759842750,-500.0,9.845e-05,2]
[355979616,1741759842759,-1173.76,9.845e-05,2]
[355979617,1741759842769,-500.0,9.845e-05,2]
[355979618,1741759842779,-500.0,9.845e-05,2]
[355979619,1741759842788,-897.74,9.845e-05,2]
[355979620,1741759842798,-500.0,9.845e-05,2]
[355979621,1741759842808,-500.0,9.845e-05,2]
[355979622,1741759842818,-500.0,9.845e-05,2]
[355979623,1741759842828,-565.74,9.845e-05,2]
[355979624,1741759842839,-500.0,9.845e-05,2]
[355979625,1741759842851,-500.0,9.845e-05,2]
[355979626,1741759842861,-949.92,9.845e-05,2]
[355979627,1741759842871,-500.0,9.845e-05,2]
[355979628,1741759842880,-500.0,9.845e-05,2]
[355979629,1741759842891,-500.0,9.845e-05,2]
[355979630,1741759842900,-584.78,9.845e-05,2]
[355979631,1741759842910,-500.0,9.845e-05,2]
[355979632,1741759842921,-500.0,9.845e-05,2]
[355979634,1741759842931,-1025.81,9.845e-05,2]
[355979636,1741759842941,-500.0,9.845e-05,2]
[355979638,1741759842951,-1064.84,9.845e-05,2]
[355979639,1741759842961,-649.64,9.845e-05,2]
[355979640,1741759842971,-500.0,9.845e-05,2]
[355979642,1741759842981,-1819.8,9.845e-05,2]
[355979644,1741759842991,-532.92,9.845e-05,2]
[355979645,1741759843000,-500.0,9.845e-05,2]
[355979647,1741759843010,-837.01,9.845e-05,2]
[355979649,1741759843019,-500.0,9.845e-05,2]
[355979652,1741759843029,-1362.82,9.845e-05,2]
[355979654,1741759843039,-1583.76,9.845e-05,2]
[355979657,1741759843048,-500.0,9.845e-05,2]
[355979659,1741759843057,-500.0,9.845e-05,2]
[355979660,1741759843067,-540.0,9.845e-05,2]
[355979661,1741759843077,-597.31,9.845e-05,2]
[355979662,1741759843087,-3935.07,9.845e-05,2]
[355979663,1741759843096,-891.51,9.845e-05,2]
[355979664,1741759843106,-500.0,9.845e-05,2]
[355979665,1741759843116,-1146.44,9.845e-05,2]
[355979666,1741759843126,-470.03039508,9.845e-05,2]
[355979667,1741759843135,-500.0,9.845e-05,2]
[355979668,1741759843145,-774.91,9.845e-05,2]
[355979669,1741759843154,-1225.63,9.845e-05,2]
[355979670,1741759843163,-500.0,9.845e-05,2]
[355979671,1741759843173,-627.17,9.845e-05,2]
[355979672,1741759843182,-500.0,9.845e-05,2]
[355979673,1741759843192,-500.0,9.845e-05,2]
[355979674,1741759843201,-500.0,9.845e-05,2]
[355979675,1741759843211,-1623.44,9.845e-05,2]
[355979676,1741759843220,-500.0,9.845e-05,2]
[355979677,1741759843229,-500.0,9.845e-05,2]
[355979678,1741759843239,-500.0,9.845e-05,2]
[355979679,1741759843248,-2072.55,9.845e-05,2]
[355979680,1741759843258,-901.58,9.845e-05,2]
[355979681,1741759843267,-501.18,9.845e-05,2]
[355979682,1741759843276,-500.0,9.845e-05,2]
[355979683,1741759843285,-500.0,9.845e-05,2]
[355979684,1741759843295,-500.0,9.845e-05,2]
[355979685,1741759843304,-500.0,9.845e-05,2]
[355979686,1741759843313,-500.0,9.845e-05,2]
[355979687,1741759843323,-500.0,9.845e-05,2]
[355979688,1741759843332,-500.0,9.845e-05,2]
[355979689,1741759843342,-500.0,9.845e-05,2]
[355979690,1741759843351,-3564.77,9.845e-05,2]
[355979691,1741759843361,-534.31,9.845e-05,2]
[355979692,1741759843370,-578.62,9.845e-05,2]
[355979693,1741759843379,-500.0,9.845e-05,2]
[355979694,1741759843389,-500.0,9.845e-05,2]
[355979695,1741759843398,-500.0,9.845e-05,2]
[355979696,1741759843408,-567.83,9.845e-05,2]
[355979697,1741759843417,-500.0,9.845e-05,2]
[355979698,1741759843427,-500.0,9.845e-05,2]
[355979699,1741759843437,-573.46,9.845e-05,2]
[355979700,1741759843446,-504.19,9.845e-05,2]
[355979701,1741759843455,-1169.3,9.845e-05,2]
[355979702,1741759843465,-729.34,9.845e-05,2]
[355979703,1741759843475,-500.0,9.845e-05,2]
[355979704,1741759843484,-550.25,9.845e-05,2]
[355979705,1741759843493,-500.0,9.845e-05,2]
[355979706,1741759843503,-1225.19,9.845e-05,2]
[355979707,1741759843512,-500.0,9.845e-05,2]
[355979708,1741759843521,-594.83,9.845e-05,2]
[355979709,1741759843532,-500.0,9.845e-05,2]
[355979710,1741759843542,-500.0,9.845e-05,2]
[355979711,1741759843552,-694.65,9.845e-05,2]
[355979712,1741759843561,-1322.26,9.845e-05,2]
[355979713,1741759843570,-500.0,9.845e-05,2]
[355979714,1741759843580,-6018.55,9.845e-05,2]
[355979715,1741759843589,-668.61,9.845e-05,2]
[355979716,1741759843599,-500.0,9.845e-05,2]
[355979717,1741759843608,-700.15,9.845e-05,2]
[355979719,1741759843618,-621.18,9.845e-05,2]
[355979721,1741759843627,-500.0,9.845e-05,2]
[355979723,1741759843636,-362.04000336,9.845e-05,2]
[355979725,1741759843645,-500.0,9.845e-05,2]
[355979727,1741759843654,-771.98,9.845e-05,2]
[355979729,1741759843664,-500.0,9.845e-05,2]
[355979731,1741759843673,-981.59,9.845e-05,2]
[355979733,1741759843682,-500.0,9.845e-05,2]
[355979735,1741759843692,-1605.37,9.845e-05,2]
[355979737,1741759843701,-500.0,9.845e-05,2]
[355979739,1741759843710,-500.0,9.845e-05,2]
[355979741,1741759843720,-577.82,9.845e-05,2]
[355979743,1741759843729,-500.0,9.845e-05,2]
[355979744,1741759843739,-500.0,9.845e-05,2]
[355979745,1741759843748,-500.0,9.846e-05,2]
[355979746,1741759843758,-500.0,9.846e-05,2]
[355979747,1741759843767,-500.0,9.846e-05,2]
[355979748,1741759843777,-500.0,9.846e-05,2]
[355979749,1741759843787,-500.0,9.846e-05,2]
[355979750,1741759843798,-500.0,9.846e-05,2]
[355979751,1741759843807,-500.0,9.846e-05,2]
[355979752,1741759843817,-500.0,9.846e-05,2]
[355979753,1741759843827,-500.0,9.846e-05,2]
[355979754,1741759843836,-525.72,9.846e-05,2]
[355979755,1741759843849,-500.0,9.846e-05,2]
[355979756,1741759843858,-500.0,9.846e-05,2]
[355979757,1741759843868,-515.21,9.846e-05,2]
[355979758,1741759843877,-500.0,9.846e-05,2]
[355979759,1741759843887,-500.0,9.846e-05,2]
[355979760,1741759843898,-500.0,9.846e-05,2]
[355979761,1741759843907,-500.0,9.846e-05,2]
[355979762,1741759843916,-500.0,9.846e-05,2]
[355979763,1741759843929,-500.0,9.846e-05,2]
[355979764,1741759843939,-500.0,9.846e-05,2]
[355979765,1741759843949,-500.0,9.846e-05,2]
[355979766,1741759843959,-500.0,9.846e-05,2]
[355979767,1741759843969,-500.0,9.846e-05,2]
[355979768,1741759843978,-524.51213636,9.846e-05,2]
[355979769,1741759843988,-500.0,9.846e-05,2]
[355979770,1741759843998,-500.0,9.846e-05,2]
[355979771,1741759844007,-500.0,9.846e-05,2]
[355979772,1741759844017,-500.0,9.846e-05,2]
[355979773,1741759844027,-500.0,9.846e-05,2]
[355979774,1741759844036,-181.40188041,9.846e-05,2]
[355979775,1741759844045,-500.0,9.846e-05,2]
[355979776,1741759844055,-500.0,9.846e-05,2]
[355979777,1741759844065,-500.0,9.846e-05,2]
[355979778,1741759844074,-500.0,9.846e-05,2]
[355979779,1741759844084,-500.0,9.846e-05,2]
[355979780,1741759844093,-500.0,9.846e-05,2]
[355979781,1741759844103,-500.0,9.846e-05,2]
[355979782,1741759844113,-500.0,9.846e-05,2]
[355979783,1741759844122,-161.1661148,9.846e-05,2]
[355979784,1741759844132,-477.3598201,9.846e-05,2]
[355979785,1741759844141,-500.0,9.846e-05,2]
[355979786,1741759844151,-500.0,9.846e-05,2]
[355979787,1741759844160,-500.0,9.846e-05,2]
[355979788,1741759844169,-500.0,9.846e-05,2]
[355979789,1741759844179,-500.0,9.846e-05,2]
[355979790,1741759844188,-504.4,9.846e-05,2]
[355979791,1741759844197,-536.47,9.846e-05,2]
[355979792,1741759844207,-500.0,9.846e-05,2]
[355979793,1741759844216,-500.0,9.846e-05,2]
[355979794,1741759844226,-500.0,9.846e-05,2]
[355979795,1741759844235,-757.23,9.846e-05,2]
[355979796,1741759844244,-500.0,9.846e-05,2]
[355979797,1741759844253,-500.0,9.846e-05,2]
[355979798,1741759844263,-500.0,9.846e-05,2]
[355979799,1741759844272,-504.94,9.846e-05,2]
[355979800,1741759844282,-500.0,9.846e-05,2]
[355979801,1741759844291,-560.69,9.846e-05,2]
[355979802,1741759844301,-500.0,9.846e-05,2]